fUSD/lending_fUSD_20260528
["ID","MTS","AMOUNT","RATE_DAILY","PERIOD"]
[423195319,1779919010000,-1000.0,0.00039999,120]
[423195306,1779919010000,-1280.88388877,0.00039998,30]
[423195321,1779919010000,-151.0,0.00039999,120]
[423195329,1779919010000,-162.380719,0.00039999,120]
[423195320,1779919010000,-322.6107,0.00039999,120]
[423195340,1779919010000,-537.6845,0.00039999,120]
[423195341,1779919010000,-691.39774486,0.00039999,120]
[423195336,1779919010000,-348.08601848,0.00039999,120]
[423195338,1779919010000,-500.0,0.00039999,120]
[423195337,1779919010000,-168.3888056,0.00039999,120]
[423195335,1779919010000,-1000.0,0.00039999,120]
[423195334,1779919010000,-520.0,0.00039999,120]
[423195332,1779919010000,-666.72878,0.00039999,120]
[423195333,1779919010000,-2642.9444445,0.00039999,120]
[423195318,1779919010000,-620.0,0.00039999,120]
[423195339,1779919010000,-151.0,0.00039999,120]
[423195330,1779919010000,-151.0,0.00039999,120]
[423195328,1779919010000,-500.0,0.00039999,120]
[423195327,1779919010000,-334.5472959,0.00039999,120]
[423195326,1779919010000,-1000.0,0.00039999,120]
[423195324,1779919010000,-642.94,0.00039999,120]
[423195322,1779919010000,-156.587,0.00039999,120]
[423195325,1779919010000,-252.5382538,0.00039999,120]
[423195323,1779919010000,-500.0,0.00039999,120]
[423195331,1779919010000,-518.5,0.00039999,120]
[423195353,1779919011000,-716.97946147,0.00039999,120]
[423195356,1779919011000,-6888.0,0.00039999,120]
[423195358,1779919011000,-153.64302685,0.00039999,120]
[423195360,1779919011000,-500.0,0.00039999,120]
[423195361,1779919011000,-6222.0,0.00039999,120]
[423195357,1779919011000,-3000.0,0.00039999,60]
[423195354,1779919011000,-151.0,0.00039999,120]
[423195359,1779919011000,-578.20924308,0.00039999,120]
[423195355,1779919011000,-151.0,0.00039999,120]
[423195349,1779919011000,-6000.0,0.00039999,120]
[423195350,1779919011000,-557.5788265,0.00039999,120]
[423195351,1779919011000,-500.0,0.00039999,120]
[423195348,1779919011000,-1000.0,0.00039999,120]
[423195345,1779919011000,-251.0,0.00039999,120]
[423195346,1779919011000,-151.0,0.00039999,120]
[423195347,1779919011000,-151.0,0.00039999,120]
[423195344,1779919011000,-174.61919142,0.00039999,120]
[423195342,1779919011000,-1000.0,0.00039999,120]
[423195362,1779919011000,-156.587,0.00039999,120]
[423195352,1779919011000,-559.19188,0.00039999,120]
[423195343,1779919011000,-539.24,0.00039999,120]
[423195365,1779919011000,-579.88197956,0.00039999,120]
[423195363,1779919011000,-260.287,0.00039999,120]
[423195364,1779919011000,-1000.0,0.00039999,120]
[423195383,1779919011000,-3111.0,0.00039999,60]
[423195384,1779919011000,-599.60298507,0.00039999,120]
[423195382,1779919011000,-7142.856,0.00039999,120]
[423195379,1779919011000,-160.0,0.00039999,120]
[423195381,1779919011000,-156.587,0.00039999,120]
[423195378,1779919011000,-200.0,0.00039999,120]
[423195376,1779919011000,-500.0,0.00039999,120]
[423195377,1779919011000,-200.0,0.00039999,120]
[423195380,1779919011000,-156.587,0.00039999,120]
[423195375,1779919011000,-151.0,0.00039999,120]
[423195374,1779919011000,-151.0,0.00039999,120]
[423195368,1779919011000,-500.0,0.00039999,120]
[423195367,1779919011000,-500.0,0.00039999,120]
[423195369,1779919011000,-160.0,0.00039999,60]
[423195366,1779919011000,-151.0,0.00039999,120]
[423195371,1779919011000,-501.84917602,0.00039999,120]
[423195372,1779919011000,-220.0,0.00039999,120]
[423195370,1779919011000,-151.0,0.00039999,120]
[423195373,1779919011000,-500.0,0.00039999,120]
[423195396,1779919012000,-518.5,0.00039999,120]
[423195401,1779919012000,-200.0,0.00039999,120]
[423195402,1779919012000,-160.0,0.00039999,120]
[423195403,1779919012000,-7407.141672,0.00039999,120]
[423195400,1779919012000,-500.0,0.00039999,120]
[423195398,1779919012000,-151.0,0.00039999,120]
[423195397,1779919012000,-151.0,0.00039999,120]
[423195404,1779919012000,-162.380719,0.00039999,120]
[423195395,1779919012000,-1676.75196359,0.00039999,120]
[423195385,1779919012000,-6452.214,0.00039999,120]
[423195394,1779919012000,-220.0,0.00039999,120]
[423195393,1779919012000,-156.587,0.00039999,120]
[423195389,1779919012000,-1000.0,0.00039999,120]
[423195391,1779919012000,-500.0,0.00039999,120]
[423195390,1779919012000,-156.587,0.00039999,120]
[423195388,1779919012000,-601.3376128,0.00039999,120]
[423195386,1779919012000,-162.380719,0.00039999,120]
[423195387,1779919012000,-269.91761902,0.00039999,120]
[423195392,1779919012000,-518.5,0.00039999,120]
[423195407,1779919012000,-623.58710447,0.00039999,120]
[423195399,1779919012000,-200.0,0.00039999,120]
[423195406,1779919012000,-162.380719,0.00039999,120]
[423195426,1779919012000,-168.3888056,0.00039999,120]
[423195424,1779919012000,-160.0,0.00039999,120]
[423195423,1779919012000,-500.0,0.00039999,120]
[423195425,1779919012000,-7681.20591386,0.00039999,120]
[423195422,1779919012000,-500.0,0.00039999,120]
[423195421,1779919012000,-200.0,0.00039999,120]
[423195420,1779919012000,-151.0,0.00039999,120]
[423195418,1779919012000,-151.0,0.00039999,120]
[423195419,1779919012000,-200.0,0.00039999,120]
[423195405,1779919012000,-1726.84058493,0.00039999,60]
[423195415,1779919012000,-162.380719,0.00039999,120]
[423195416,1779919012000,-537.6845,0.00039999,120]
[423195413,1779919012000,-6690.945918,0.00039999,120]
[423195414,1779919012000,-165.92,0.00039999,60]
[423195412,1779919012000,-537.6845,0.00039999,120]
[423195410,1779919012000,-162.380719,0.00039999,120]
[423195411,1779919012000,-500.0,0.00039999,120]
[423195409,1779919012000,-1000.0,0.00039999,120]
[423195408,1779919012000,-168.3888056,0.00039999,120]
[423195417,1779919012000,-220.0,0.00039999,120]
[423195437,1779919013000,-220.0,0.00039999,120]
[423195439,1779919013000,-172.05904,0.00039999,60]
[423195440,1779919013000,-151.0,0.00039999,120]
[423195443,1779919013000,-200.0,0.00039999,120]
[423195442,1779919013000,-151.0,0.00039999,120]
[423195444,1779919013000,-500.0,0.00039999,120]
[423195438,1779919013000,-621.78829552,0.00039999,120]
[423195441,1779919013000,-200.0,0.00039999,120]
[423195436,1779919013000,-557.5788265,0.00039999,120]
[423195433,1779919013000,-557.5788265,0.00039999,120]
[423195431,1779919013000,-174.61919142,0.00039999,120]
[423195434,1779919013000,-168.38880563,0.00039999,120]
[423195432,1779919013000,-500.0,0.00039999,120]
[423195430,1779919013000,-646.65982734,0.00039999,120]
[423195428,1779919013000,-1000.0,0.00039999,120]
[423195427,1779919013000,-168.3888056,0.00039999,120]
[423195429,1779919013000,-168.3888056,0.00039999,120]
[423195446,1779919013000,-152.0,0.00039999,120]
[423195435,1779919013000,-6938.51091696,0.00039999,120]
[423195445,1779919013000,-160.0,0.00039999,120]
[423195447,1779919013000,-7965.41053267,0.00039999,120]
[423195448,1779919013000,-174.80890539,0.00039999,120]
[423195468,1779919013000,-500.0,0.00039999,120]
[423195466,1779919013000,-160.0,0.00039999,120]
[423195465,1779919013000,-7195.23582089,0.00039999,120]
[423195467,1779919013000,-3535.69145908,0.00039999,120]
[423195464,1779919013000,-151.0,0.00039999,120]
[423195461,1779919013000,-151.0,0.00039999,120]
[423195463,1779919013000,-500.0,0.00039999,120]
[423195459,1779919013000,-178.42522448,0.00039999,60]
[423195460,1779919013000,-200.0,0.00039999,120]
[423195462,1779919013000,-200.0,0.00039999,120]
[423195456,1779919013000,-220.0,0.00039999,120]
[423195458,1779919013000,-578.20924308,0.00039999,120]
[423195455,1779919013000,-578.20924312,0.00039999,120]
[423195454,1779919013000,-174.61919144,0.00039999,120]
[423195453,1779919013000,-174.61919141,0.00039999,120]
[423195451,1779919013000,-670.58624095,0.00039999,120]
[423195452,1779919013000,-500.0,0.00039999,120]
[423195450,1779919013000,-1000.0,0.00039999,120]
[423195457,1779919013000,-644.79446245,0.00039999,120]
[423195449,1779919013000,-500.0,0.00039999,120]
[423195481,1779919014000,-500.0,0.00039999,120]
[423195483,1779919014000,-187.78006524,0.00039999,120]
[423195482,1779919014000,-721.12765534,0.00039999,120]
[423195488,1779919014000,-200.0,0.00039999,120]
[423195486,1779919014000,-621.78829552,0.00039999,120]
[423195485,1779919014000,-220.0,0.00039999,120]
[423195480,1779919014000,-4883.515381,0.00039999,120]
[423195484,1779919014000,-152.0,0.00039999,120]
[423195479,1779919014000,-151.0,0.00039999,120]
[423195469,1779919014000,-695.39793187,0.00039999,120]
[423195478,1779919014000,-500.0,0.00039999,120]
[423195476,1779919014000,-200.0,0.00039999,120]
[423195474,1779919014000,-185.02695778,0.00039999,60]
[423195475,1779919014000,-200.0,0.00039999,120]
[423195473,1779919014000,-599.60298507,0.00039999,120]
[423195472,1779919014000,-668.65185759,0.00039999,120]
[423195470,1779919014000,-181.08010149,0.00039999,120]
[423195487,1779919014000,-191.87295522,0.00039999,60]
[423195477,1779919014000,-151.0,0.00039999,120]
[423195489,1779919014000,-200.0,0.00039999,120]
[423195471,1779919014000,-220.0,0.00039999,120]
[423195490,1779919014000,-500.0,0.00039999,120]
[423195491,1779919014000,-151.0,0.00039999,120]
[423195510,1779919014000,-200.0,0.00039999,120]
[423195509,1779919014000,-206.33422798,0.00039999,60]
[423195508,1779919014000,-500.0,0.00039999,120]
[423195507,1779919014000,-152.0,0.00039999,120]
[423195504,1779919014000,-151.0,0.00039999,120]
[423195505,1779919014000,-775.4783256,0.00039999,120]
[423195506,1779919014000,-220.0,0.00039999,120]
[423195503,1779919014000,-500.0,0.00039999,120]
[423195502,1779919014000,-151.0,0.00039999,120]
[423195511,1779919014000,-200.0,0.00039999,120]
[423195501,1779919014000,-200.0,0.00039999,120]
[423195499,1779919014000,-198.97225456,0.00039999,60]
[423195498,1779919014000,-358.49116818,0.00039999,120]
[423195496,1779919014000,-220.0,0.00039999,120]
[423195493,1779919014000,-215.5806872,0.00039999,120]
[423195495,1779919014000,-152.0,0.00039999,120]
[423195497,1779919014000,-500.0,0.00039999,120]
[423195494,1779919014000,-747.80937859,0.00039999,120]
[423195492,1779919014000,-151.0,0.00039999,120]
[423195500,1779919014000,-200.0,0.00039999,120]
[423195525,1779919015000,-311.527,0.0004,120]
[423195526,1779919015000,-200.0,0.0004,120]
[423195524,1779919015000,-1000000.0,0.0004,120]
[423195528,1779919015000,-1000.0,0.0004,120]
[423195529,1779919015000,-272.19497944,0.0004,120]
[423195522,1779919015000,-10000000.0,0.0004,120]
[423195530,1779919015000,-347.55501368,0.0004,30]
[423195527,1779919015000,-4716.43040747,0.0004,50]
[423195520,1779919015000,-500.0,0.00039999,120]
[423195517,1779919015000,-152.0,0.00039999,120]
[423195521,1779919015000,-1551874.02689396,0.0004,120]
[423195519,1779919015000,-200.0,0.00039999,120]
[423195518,1779919015000,-213.96859442,0.00039999,60]
[423195515,1779919015000,-447.10093912,0.00039999,120]
[423195516,1779919015000,-220.0,0.00039999,120]
[423195512,1779919015000,-500.0,0.00039999,120]
[423195513,1779919015000,-151.0,0.00039999,120]
[423195531,1779919015000,-151.0,0.0004,120]
[423195523,1779919015000,-1000000.0,0.0004,120]
[423195532,1779919015000,-13958.0,0.0004,120]
[423195514,1779919015000,-151.0,0.00039999,120]
[423195533,1779919015000,-10519.45735301,0.0004,60]
[423195553,1779919015000,-262.63931446,0.00040018,120]
[423195550,1779919015000,-214.88671183,0.00040017,120]
[423195552,1779919015000,-214.88671183,0.00040018,120]
[423195551,1779919015000,-221.09502105,0.00040018,120]
[423195547,1779919015000,-164.294019,0.0004,56]
[423195548,1779919015000,-151.1,0.00040008,120]
[423195549,1779919015000,-1933.98040651,0.00040017,120]
[423195545,1779919015000,-4178.0,0.0004,30]
[423195546,1779919015000,-45569.0388093,0.0004,30]
[423195534,1779919015000,-1201.695,0.0004,120]
[423195541,1779919015000,-152.0,0.0004,120]
[423195544,1779919015000,-319.18,0.0004,120]
[423195542,1779919015000,-2120.68963432,0.0004,120]
[423195539,1779919015000,-232.0,0.0004,120]
[423195537,1779919015000,-10000.0,0.0004,60]
[423195538,1779919015000,-3644.0,0.0004,30]
[423195536,1779919015000,-200.0,0.0004,120]
[423195540,1779919015000,-2475.0,0.0004,120]
[423195535,1779919015000,-11248.04757577,0.0004,30]
[423195543,1779919015000,-170.0,0.0004,30]
[423195566,1779919016000,-600.0,0.00040194,60]
[423195567,1779919016000,-151.0,0.000402,120]
[423195568,1779919016000,-151.1,0.00040208,120]
[423195570,1779919016000,-158.7,0.00040235,120]
[423195571,1779919016000,-151.1,0.00040258,120]
[423195572,1779919016000,-250.01,0.00040274,73]
[423195565,1779919016000,-1100.0,0.00040194,60]
[423195569,1779919016000,-219.97,0.00040234,120]
[423195564,1779919016000,-158.7,0.00040185,120]
[423195560,1779919016000,-227.48,0.00040137,30]
[423195563,1779919016000,-219.97,0.00040184,120]
[423195561,1779919016000,-151.1,0.00040158,120]
[423195558,1779919016000,-151.1,0.00040058,120]
[423195559,1779919016000,-151.1,0.00040108,120]
[423195557,1779919016000,-161.38669409,0.00040037,120]
[423195556,1779919016000,-314.39968879,0.00040036,120]
[423195554,1779919016000,-159.17534211,0.00040018,120]
[423195574,1779919016000,-158.7,0.00040285,120]
[423195562,1779919016000,-150.0,0.0004017,30]
[423195555,1779919016000,-150.0,0.00040021,120]
[423195577,1779919016000,-1933.98040651,0.00040291,120]
[423195575,1779919016000,-506.85,0.0004029,60]
[423195573,1779919016000,-219.97,0.00040284,120]
[423195594,1779919016000,-165.0,0.00040371,120]
[423195593,1779919016000,-152.0,0.00040371,120]
[423195591,1779919016000,-157.0,0.00040371,120]
[423195592,1779919016000,-159.0,0.00040371,120]
[423195590,1779919016000,-154.0,0.00040371,120]
[423195588,1779919016000,-158.7,0.00040335,120]
[423195587,1779919016000,-219.97,0.00040334,120]
[423195586,1779919016000,-759.79,0.0004031,120]
[423195589,1779919016000,-151.1,0.00040358,120]
[423195584,1779919016000,-151.1,0.00040308,120]
[423195585,1779919016000,-150.0,0.0004031,120]
[423195579,1779919016000,-221.09502105,0.00040292,120]
[423195578,1779919016000,-214.88671183,0.00040291,120]
[423195580,1779919016000,-214.88671183,0.00040292,120]
[423195576,1779919016000,-30251.91,0.0004029,60]
[423195583,1779919016000,-262.63931446,0.00040292,120]
[423195582,1779919016000,-214.88671184,0.00040292,120]
[423195581,1779919016000,-214.88671185,0.00040292,120]
[423195603,1779919017000,-158.7,0.00040385,120]
[423195611,1779919017000,-158.7,0.00040485,120]
[423195610,1779919017000,-219.97,0.00040484,120]
[423195609,1779919017000,-250.0,0.00040473,76]
[423195608,1779919017000,-151.10935434,0.00040458,120]
[423195607,1779919017000,-158.7,0.00040435,120]
[423195606,1779919017000,-219.97,0.00040434,120]
[423195605,1779919017000,-150.0,0.0004041,30]
[423195612,1779919017000,-2400.0,0.000405,120]
[423195602,1779919017000,-219.97,0.00040384,120]
[423195601,1779919017000,-156.0,0.00040373,120]
[423195599,1779919017000,-155.0,0.00040371,120]
[423195600,1779919017000,-156.0,0.00040371,120]
[423195596,1779919017000,-155.0,0.00040371,120]
[423195598,1779919017000,-151.0,0.00040371,120]
[423195597,1779919017000,-154.0,0.00040371,120]
[423195595,1779919017000,-155.0,0.00040371,120]
[423195604,1779919017000,-151.1,0.00040408,120]
[423195613,1779919017000,-151.16438412,0.00040507,60]
[423195618,1779919017000,-214.88671183,0.00040565,120]
[423195614,1779919017000,-581.77679065,0.00040507,60]
[423195634,1779919017000,-158.7,0.00040735,120]
[423195632,1779919017000,-158.7,0.00040685,120]
[423195631,1779919017000,-219.97,0.00040684,120]
[423195630,1779919017000,-150.0,0.00040682,120]
[423195629,1779919017000,-999.0,0.00040658,120]
[423195627,1779919017000,-3570.06621914,0.00040637,60]
[423195628,1779919017000,-250.0,0.00040657,80]
[423195626,1779919017000,-158.7,0.00040635,120]
[423195625,1779919017000,-219.97,0.00040634,120]
[423195615,1779919017000,-219.97,0.00040534,120]
[423195624,1779919017000,-151.0,0.000406,120]
[423195622,1779919017000,-219.97,0.00040584,120]
[423195619,1779919017000,-221.09502105,0.00040566,120]
[423195621,1779919017000,-262.63931446,0.00040566,120]
[423195620,1779919017000,-214.88671183,0.00040566,120]
[423195633,1779919017000,-219.97,0.00040734,120]
[423195617,1779919017000,-1933.98040651,0.00040565,120]
[423195616,1779919017000,-158.7,0.00040535,120]
[423195623,1779919017000,-158.7,0.00040585,120]
[423195644,1779919018000,-1545.27,0.000408,60]
[423195649,1779919018000,-214.88671183,0.00040839,120]
[423195653,1779919018000,-159.17534211,0.0004084,120]
[423195647,1779919018000,-158.7,0.00040835,120]
[423195650,1779919018000,-221.09502105,0.0004084,120]
[423195645,1779919018000,-250.0,0.00040828,84]
[423195648,1779919018000,-1933.98040651,0.00040839,120]
[423195646,1779919018000,-219.97,0.00040834,120]
[423195639,1779919018000,-500.0,0.00040795,120]
[423195642,1779919018000,-1545.276,0.000408,60]
[423195641,1779919018000,-796.0,0.000408,120]
[423195640,1779919018000,-153.49639516,0.000408,60]
[423195637,1779919018000,-219.97,0.00040784,120]
[423195638,1779919018000,-158.7,0.00040785,120]
[423195635,1779919018000,-201.36243105,0.0004074,30]
[423195636,1779919018000,-1000.0,0.00040755,120]
[423195654,1779919018000,-760.28,0.00040861,120]
[423195643,1779919018000,-1545.276,0.000408,60]
[423195651,1779919018000,-214.88671183,0.0004084,120]
[423195661,1779919018000,-1047.5,0.000409,120]
[423195655,1779919018000,-2279.38,0.00040861,120]
[423195674,1779919018000,-1000000.0,0.00041,120]
[423195672,1779919018000,-2465.0,0.00041,120]
[423195673,1779919018000,-2000.0,0.00041,120]
[423195670,1779919018000,-2363.68261297,0.00041,120]
[423195671,1779919018000,-192.68415607,0.00041,120]
[423195669,1779919018000,-331.33028699,0.00041,30]
[423195668,1779919018000,-2400.0,0.00041,120]
[423195652,1779919018000,-262.63931446,0.0004084,120]
[423195665,1779919018000,-150.0,0.00040958,30]
[423195667,1779919018000,-250.0,0.00040986,87]
[423195664,1779919018000,-158.99556323,0.00040935,120]
[423195663,1779919018000,-219.97,0.00040934,120]
[423195662,1779919018000,-167.37,0.000409,30]
[423195660,1779919018000,-178.22697391,0.000409,30]
[423195659,1779919018000,-391.2,0.000409,120]
[423195657,1779919018000,-219.97,0.00040884,120]
[423195658,1779919018000,-158.7,0.00040885,120]
[423195656,1779919018000,-45377.86,0.00040861,120]
[423195666,1779919018000,-219.97,0.00040984,120]
[423195675,1779919019000,-9112.35860987,0.00041,120]
[423195679,1779919037000,-151.0,0.00038125,30]
[423195677,1779919037000,-151.0,0.00036153,30]
[423195676,1779919037000,-185.56,0.00028229,30]
[423195678,1779919037000,-167.27229746,0.000373,30]
[423195680,1779919037000,-286.9361552,0.0003822,120]
[423195683,1779919037000,-2000.0,0.00039281,112]
[423195682,1779919037000,-500.0,0.00039177,60]
[423195685,1779919037000,-2000.0,0.00039681,112]
[423195684,1779919037000,-2000.0,0.00039481,112]
[423195681,1779919037000,-500.0,0.00038355,60]
[423195699,1779919038000,-200.0,0.00039999,120]
[423195702,1779919038000,-200.0,0.00039999,120]
[423195700,1779919038000,-500.0,0.00039999,120]
[423195701,1779919038000,-500.0,0.00039999,120]
[423195698,1779919038000,-500.0,0.00039999,120]
[423195697,1779919038000,-500.0,0.00039999,120]
[423195696,1779919038000,-200.0,0.00039999,120]
[423195694,1779919038000,-500.0,0.00039999,120]
[423195693,1779919038000,-200.0,0.00039999,120]
[423195692,1779919038000,-500.0,0.00039999,120]
[423195703,1779919038000,-500.0,0.00039999,120]
[423195691,1779919038000,-500.0,0.00039999,120]
[423195690,1779919038000,-500.0,0.00039999,120]
[423195688,1779919038000,-273.34052324,0.00039999,120]
[423195689,1779919038000,-200.0,0.00039999,120]
[423195687,1779919038000,-500.0,0.00039999,120]
[423195686,1779919038000,-2000.0,0.00039881,112]
[423195695,1779919038000,-500.0,0.00039999,120]
[423195705,1779919038000,-500.0,0.00039999,120]
[423195704,1779919038000,-200.0,0.00039999,120]
[423195707,1779919038000,-500.0,0.00039999,120]
[423195726,1779919038000,-297.23294021,0.00040767,120]
[423195725,1779919038000,-350.0,0.00040767,120]
[423195724,1779919038000,-350.0,0.00040767,120]
[423195722,1779919038000,-2000.0,0.00040081,112]
[423195723,1779919038000,-2000.0,0.00040281,112]
[423195721,1779919038000,-500.0,0.00039999,60]
[423195706,1779919038000,-200.0,0.00039999,120]
[423195720,1779919038000,-500.0,0.00039999,120]
[423195718,1779919038000,-500.0,0.00039999,120]
[423195719,1779919038000,-500.0,0.00039999,120]
[423195717,1779919038000,-500.0,0.00039999,120]
[423195716,1779919038000,-500.0,0.00039999,120]
[423195713,1779919038000,-500.0,0.00039999,120]
[423195715,1779919038000,-209.67285534,0.00039999,120]
[423195710,1779919038000,-200.0,0.00039999,120]
[423195712,1779919038000,-200.0,0.00039999,120]
[423195709,1779919038000,-500.0,0.00039999,120]
[423195708,1779919038000,-500.0,0.00039999,120]
[423195711,1779919038000,-500.0,0.00039999,120]
[423195714,1779919038000,-500.0,0.00039999,120]
[423195737,1779919039000,-1000000.0,0.00041,120]
[423195739,1779919039000,-1000000.0,0.00041,120]
[423195738,1779919039000,-1000000.0,0.00041,120]
[423195735,1779919039000,-1000000.0,0.00041,120]
[423195741,1779919039000,-1000000.0,0.00041,120]
[423195742,1779919039000,-1000000.0,0.00041,120]
[423195740,1779919039000,-1000000.0,0.00041,120]
[423195736,1779919039000,-1250000.0,0.00041,120]
[423195743,1779919039000,-139929.64777208,0.00041,30]
[423195733,1779919039000,-352.0,0.00041,120]
[423195729,1779919039000,-1000000.0,0.00041,120]
[423195730,1779919039000,-1000000.0,0.00041,120]
[423195731,1779919039000,-1000000.0,0.00041,120]
[423195732,1779919039000,-1000000.0,0.00041,120]
[423195727,1779919039000,-500.0,0.00040821,60]
[423195728,1779919039000,-990887.64139013,0.00041,120]
[423195734,1779919039000,-270.0,0.00041,120]
[423195744,1779919039000,-800.0,0.00041,45]
[423195761,1779919039000,-800.0,0.00041,45]
[423195746,1779919039000,-800.0,0.00041,45]
[423195745,1779919039000,-800.0,0.00041,45]
[423195764,1779919039000,-800.0,0.00041,45]
[423195763,1779919039000,-800.0,0.00041,45]
[423195759,1779919039000,-800.0,0.00041,45]
[423195762,1779919039000,-800.0,0.00041,45]
[423195760,1779919039000,-800.0,0.00041,45]
[423195757,1779919039000,-800.0,0.00041,45]
[423195755,1779919039000,-800.0,0.00041,45]
[423195758,1779919039000,-800.0,0.00041,45]
[423195754,1779919039000,-800.0,0.00041,45]
[423195753,1779919039000,-800.0,0.00041,45]
[423195752,1779919039000,-800.0,0.00041,45]
[423195750,1779919039000,-800.0,0.00041,45]
[423195751,1779919039000,-800.0,0.00041,45]
[423195749,1779919039000,-800.0,0.00041,45]
[423195747,1779919039000,-800.0,0.00041,45]
[423195748,1779919039000,-800.0,0.00041,45]
[423195756,1779919039000,-800.0,0.00041,45]
[423195768,1779919040000,-800.0,0.00041,45]
[423195765,1779919040000,-800.0,0.00041,45]
[423195767,1779919040000,-800.0,0.00041,45]
[423195770,1779919040000,-1000.0,0.00041,120]
[423195769,1779919040000,-800.0,0.00041,45]
[423195766,1779919040000,-800.0,0.00041,45]
[423195772,1779919040000,-773.08266555,0.00041,120]
[423195774,1779919040000,-2106.53,0.00041,120]
[423195776,1779919040000,-545414.82567646,0.00041,120]
[423195775,1779919040000,-999798.0,0.00041,120]
[423195771,1779919040000,-5931.25772433,0.00041,120]
[423195773,1779919040000,-13015.0,0.00041,30]
[423195778,1779919052000,-411.24954078,0.00039374,120]
[423195779,1779919052000,-454585.17432354,0.00041,120]
[423195777,1779919052000,-185.56,0.0002822,30]
[423195782,1779919052000,-13958.0,0.00041,120]
[423195783,1779919052000,-1500.0,0.00041,120]
[423195784,1779919052000,-200200.0,0.00041,30]
[423195781,1779919052000,-155.10258464,0.00041,120]
[423195780,1779919052000,-1001126.46,0.00041,120]
[423195795,1779919053000,-3514.12184446,0.00041,120]
[423195798,1779919053000,-151.0,0.00041,120]
[423195800,1779919053000,-248.66212135,0.00041,60]
[423195801,1779919053000,-926.25508553,0.00041,30]
[423195799,1779919053000,-152.0,0.00041,120]
[423195794,1779919053000,-1000000.0,0.00041,120]
[423195797,1779919053000,-231.0,0.00041,120]
[423195796,1779919053000,-10185.0,0.00041,120]
[423195788,1779919053000,-1000000.0,0.00041,120]
[423195792,1779919053000,-1000000.0,0.00041,120]
[423195790,1779919053000,-1000000.0,0.00041,120]
[423195791,1779919053000,-1640000.0,0.00041,120]
[423195789,1779919053000,-1000000.0,0.00041,120]
[423195786,1779919053000,-1000000.0,0.00041,120]
[423195787,1779919053000,-1000000.0,0.00041,120]
[423195785,1779919053000,-1000000.0,0.00041,120]
[423195802,1779919053000,-161.27917126,0.00041,30]
[423195793,1779919053000,-1000000.0,0.00041,120]
[423195804,1779919053000,-45569.0388093,0.00041,30]
[423195813,1779919053000,-822.4136,0.00041086,120]
[423195808,1779919053000,-219.97,0.00041034,120]
[423195803,1779919053000,-574.84,0.00041,120]
[423195823,1779919053000,-1000.0,0.00041096,60]
[423195822,1779919053000,-2047.18,0.00041096,120]
[423195821,1779919053000,-500.0,0.00041095,30]
[423195819,1779919053000,-500.0,0.00041095,120]
[423195817,1779919053000,-500.0,0.00041095,120]
[423195818,1779919053000,-500.0,0.00041095,120]
[423195814,1779919053000,-698.4426,0.00041086,120]
[423195820,1779919053000,-213.15449816,0.00041095,120]
[423195815,1779919053000,-5832.96009025,0.0004109,120]
[423195816,1779919053000,-500.0,0.00041095,120]